bitfinex-derivatives/quotes_BNBF0:USTF0_20241225
["timestamp","ask_amount","ask_price","bid_price","bid_amount"]
[1735166094527,1.06536725,701.63,699.52,1.28094218]
[1735166094732,0.26234315,701.62,699.52,1.28094218]
[1735166095030,0.26234315,701.61,699.52,1.28094218]
[1735166095230,1.17561944,701.61,699.54,0.28590216]
[1735166095431,0.28506677,701.59,699.54,1.56684434]
[1735166095629,0.26233644,701.58,699.54,1.56684434]
[1735166095926,0.28507896,701.56,699.54,1.56684434]
[1735166096132,1.17561273,701.55,699.54,1.56684434]
[1735166096327,0.26233644,701.54,699.54,1.56684434]
[1735166096531,0.26233644,701.54,699.54,0.28590216]
[1735166096532,0.91327629,701.54,699.54,0.28590216]
[1735166096832,0.91327629,701.53,699.54,0.28590216]
[1735166097031,0.91327629,701.52,699.54,0.28590216]
[1735166097432,0.91327629,701.51,699.54,0.28590216]
[1735166097825,0.91327629,701.5,699.54,0.28590216]
[1735166098026,0.91327629,701.49,699.54,0.28590216]
[1735166098431,1.19838776,701.48,699.54,0.28590216]
[1735166098630,0.91327629,701.47,699.54,0.28590216]
[1735166098833,1.19839589,701.46,699.54,0.28590216]
[1735166099032,0.28512367,701.45,699.54,0.28590216]
[1735166099429,0.91327629,701.44,699.54,0.28590216]
[1735166099630,1.19840809,701.43,699.54,0.28590216]
[1735166099832,1.19841215,701.42,699.54,0.28590216]
[1735166100032,0.28513993,701.41,699.54,0.28590216]
[1735166100229,1.19841622,701.41,699.54,0.28590216]
[1735166100431,0.91327629,701.4,699.54,0.28590216]
[1735166100630,1.19842435,701.39,699.54,0.28590216]
[1735166100849,0.28515212,701.38,699.54,0.28590216]
[1735166101033,1.19842841,701.38,699.54,0.28590216]
[1735166101432,0.91327629,701.37,699.54,0.28590216]
[1735166101833,1.19843655,701.36,699.54,0.28590216]
[1735166102035,0.91327629,701.35,699.54,0.28590216]
[1735166102235,1.19844061,701.35,699.54,0.28590216]
[1735166102438,0.91327629,701.34,699.54,0.28590216]
[1735166102837,0.91327629,701.33,699.54,0.28590216]
[1735166103236,0.91327629,701.32,699.54,0.28590216]
[1735166103640,0.91327629,701.31,699.54,0.28590216]
[1735166103837,0.28516432,701.35,699.54,0.28590216]
[1735166103838,0.91327629,701.3,699.54,0.28590216]
[1735166104233,0.28516432,701.35,699.54,0.28590216]
[1735166104234,0.91327629,701.29,699.54,0.28590216]
[1735166104739,0.91327629,701.28,699.54,0.28590216]
[1735166105339,0.91327629,701.27,699.54,0.28590216]
[1735166105543,0.91327629,701.26,699.54,0.28590216]
[1735166105741,0.91327629,701.25,699.54,0.28590216]
[1735166106240,0.91327629,701.24,699.54,0.28590216]
[1735166106642,0.91327629,701.23,699.6,1.28094218]
[1735166106940,0.91327629,701.22,699.6,1.28094218]
[1735166107140,0.91327629,701.21,699.6,1.28094218]
[1735166107534,0.91327629,701.2,699.54,0.28590216]
[1735166107735,0.91327629,701.19,699.54,0.28590216]
[1735166107937,0.91327629,701.18,699.54,0.28590216]
[1735166108333,0.91327629,701.17,699.54,0.28590216]
[1735166108839,0.91327629,701.16,699.54,0.28590216]
[1735166109243,0.91327629,701.15,699.54,0.28590216]
[1735166109645,0.28516432,701.35,699.54,0.28590216]
[1735166109943,0.91084094,701.34,699.54,0.28590216]
[1735166110142,0.91084094,701.33,699.54,0.28590216]
[1735166110644,0.28516432,701.35,699.54,0.28590216]
[1735166110645,0.91084094,701.32,699.54,0.28590216]
[1735166111040,0.91084094,701.31,699.54,0.28590216]
[1735166111243,0.91084094,701.3,699.54,0.28590216]
[1735166111444,0.91084094,701.29,699.54,0.28590216]
[1735166111842,0.91084094,701.28,699.54,0.28590216]
[1735166112038,0.91084094,701.27,699.54,0.28590216]
[1735166112240,0.91084094,701.26,699.54,0.28590216]
[1735166112439,0.91084094,701.25,699.54,0.28590216]
[1735166112947,0.91084094,701.24,699.54,0.28590216]
[1735166113148,0.91084094,701.23,699.54,0.28590216]
[1735166113549,0.28516432,701.35,699.54,0.28590216]
[1735166113846,0.91009918,701.34,699.54,0.28590216]
[1735166114150,0.91009918,701.33,699.54,0.28590216]
[1735166114649,0.91009918,701.32,699.54,0.28590216]
[1735166114849,0.91009918,701.31,699.54,0.28590216]
[1735166115250,0.91009918,701.3,699.54,0.28590216]
[1735166115451,0.91009918,701.29,699.54,0.28590216]
[1735166115846,0.28516432,701.35,699.54,0.28590216]
[1735166116349,0.90976902,701.34,699.54,0.28590216]
[1735166116750,0.90976902,701.33,699.54,0.28590216]
[1735166117151,0.28516432,701.35,699.54,0.28590216]
[1735166117754,0.90954342,701.34,699.54,0.28590216]
[1735166117951,0.90954342,701.34,699.55,1.28094218]
[1735166118148,0.28516432,701.35,699.55,1.28094218]
[1735166119454,0.28516432,701.35,699.54,1.62035818]
[1735166119657,0.28516432,701.35,699.55,1.33445602]
[1735166120249,0.28516432,701.35,699.54,0.28590216]
[1735166120849,0.28516432,701.35,699.54,1.56684434]
[1735166122055,0.28516432,701.35,699.55,1.28094218]
[1735166122349,0.90966189,701.34,699.55,1.28094218]
[1735166122654,0.90966189,701.34,699.57,0.2858899]
[1735166122857,0.28516432,701.35,699.66,1.28094218]
[1735166123053,0.28516432,701.35,699.68,0.28584495]
[1735166123657,0.28516432,701.35,699.74,1.28094218]
[1735166123855,0.28516432,701.35,699.76,0.28581227]
[1735166124056,0.90966968,701.34,699.76,0.28581227]
[1735166124255,0.28516432,701.35,699.76,0.28581227]
[1735166126051,0.28516432,701.35,699.76,1.56675445]
[1735166126452,0.91023525,701.34,699.76,1.56675445]
[1735166126656,0.91023525,701.34,699.79,1.28094218]
[1735166126957,0.91023525,701.34,699.81,0.28579185]
[1735166127256,0.91023525,701.33,699.81,0.28579185]
[1735166127659,0.91023525,701.32,699.81,0.28579185]
[1735166127959,0.91023525,701.34,699.81,0.28579185]
[1735166128258,0.91023525,701.33,699.82,1.28094218]
[1735166128558,0.91023525,701.34,699.84,0.2857796]
[1735166128751,0.91023525,701.33,699.84,0.2857796]
[1735166128955,0.91023525,701.34,699.87,1.28094218]
[1735166129156,0.91023525,701.33,699.87,1.28094218]
[1735166129352,0.91023525,701.32,699.87,1.28094218]
[1735166129559,0.91023525,701.34,699.87,1.28094218]
[1735166129755,0.91023525,701.33,699.87,1.28094218]
[1735166129957,0.91023525,701.32,699.91,1.28094218]
[1735166130154,0.28516432,701.35,699.91,1.28094218]
[1735166130355,0.9106324,701.34,699.91,1.28094218]
[1735166130856,0.9106324,701.33,699.94,1.28094218]
[1735166131354,0.9106324,701.32,699.93,1.28094218]
[1735166131558,0.9106324,701.34,699.93,1.28094218]
[1735166131958,0.9106324,701.33,699.93,1.28094218]
[1735166132160,0.9106324,701.32,699.87,1.28094218]
[1735166132360,0.9106324,701.34,699.87,1.28094218]
[1735166132758,0.9106324,701.33,699.87,1.28094218]
[1735166133061,0.9106324,701.32,699.88,1.28094218]
[1735166133259,0.9106324,701.31,699.88,1.28094218]
[1735166133761,0.9106324,701.34,699.84,0.2857796]
[1735166134155,0.9106324,701.33,699.84,0.2857796]
[1735166134361,0.9106324,701.32,699.84,0.2857796]
[1735166134555,0.9106324,701.31,699.84,0.2857796]
[1735166134956,0.9106324,701.3,699.85,1.28094218]
[1735166135261,0.9106324,701.34,699.85,1.28094218]
[1735166135455,0.9106324,701.33,699.85,1.28094218]
[1735166135659,0.9106324,701.33,699.86,1.28094218]
[1735166135858,0.9106324,701.32,699.86,1.28094218]
[1735166136061,0.9106324,701.31,699.86,1.28094218]
[1735166136260,0.9106324,701.31,699.88,0.28576327]
[1735166136456,0.9106324,701.3,699.88,0.28576327]
[1735166136657,0.9106324,701.34,699.88,0.28576327]
[1735166136855,0.9106324,701.34,699.88,1.56670545]
[1735166137061,0.9106324,701.33,699.88,1.56670545]
[1735166137561,0.9106324,701.32,699.88,1.56670545]
[1735166137862,0.9106324,701.31,699.89,1.28094218]
[1735166138064,0.9106324,701.31,699.91,0.28575102]
[1735166138461,0.9106324,701.3,699.91,0.28575102]
[1735166138860,0.9106324,701.29,699.91,0.28575102]
[1735166139258,0.9106324,701.34,699.91,1.5666932]
[1735166139457,0.9106324,701.33,699.91,1.5666932]
[1735166139862,0.9117176,701.32,699.91,1.5666932]
[1735166140057,0.9117176,701.31,699.91,1.5666932]
[1735166140259,0.9117176,701.31,699.93,1.28094218]
[1735166140461,0.9117176,701.3,699.95,0.28573469]
[1735166140664,0.9117176,701.34,699.95,0.28573469]
[1735166141160,0.9117176,701.33,699.95,0.28573469]
[1735166141564,0.9117176,701.32,700.0,1.28094218]
[1735166141764,0.9117176,701.32,700.01,0.2857102]
[1735166142165,0.9117176,701.34,700.02,1.28094218]
[1735166142367,0.9117176,701.33,700.03,0.28570204]
[1735166142566,0.9117176,701.32,700.03,0.28570204]
[1735166143065,0.9117176,701.31,700.04,1.28094218]
[1735166143366,0.9117176,701.3,700.05,0.28569387]
[1735166143566,0.9117176,701.34,700.17,1.28094218]
[1735166143968,0.9117176,701.33,700.18,0.28564083]
[1735166144267,0.9117176,701.32,700.18,0.28564083]
[1735166144667,0.9117176,701.31,700.18,0.28564083]
[1735166144968,0.9117176,701.3,700.18,0.28564083]
[1735166145366,0.9117176,701.29,700.18,0.28564083]
[1735166145569,0.9117176,701.28,700.18,0.28564083]
[1735166146069,0.28516432,701.35,700.18,0.28564083]
[1735166146262,0.91280644,701.27,700.18,0.28564083]
[1735166146466,0.91280644,701.26,700.18,0.28564083]
[1735166146764,0.28516432,701.35,700.18,0.28564083]
[1735166147165,0.91282588,701.34,700.18,0.28564083]
[1735166147767,0.91282588,701.33,700.18,0.28564083]
[1735166147964,0.91282588,701.32,700.18,0.28564083]
[1735166148269,0.91282588,701.31,700.18,0.28564083]
[1735166148669,0.91282588,701.3,700.18,0.28564083]
[1735166148971,0.28516432,701.35,700.18,0.28564083]
[1735166149169,0.91324984,701.29,700.18,0.28564083]
[1735166149570,0.91324984,701.28,700.18,0.28564083]
[1735166149864,0.91324984,701.27,700.18,0.28564083]
[1735166150472,0.91324984,701.26,700.18,0.28564083]
[1735166150771,0.91324984,701.25,700.18,0.28564083]
[1735166151165,0.91324984,701.24,700.18,0.28564083]
[1735166151368,0.91324984,701.23,700.18,0.28564083]
[1735166151666,0.91324984,701.22,700.18,0.28564083]
[1735166152167,0.91324984,701.21,700.18,0.28564083]
[1735166152569,0.91324984,701.2,700.18,0.28564083]
[1735166152969,0.91324984,701.19,700.18,0.28564083]
[1735166153369,0.91324984,701.18,700.18,0.28564083]
[1735166153569,0.91324984,701.17,700.18,0.28564083]
[1735166153973,0.91324984,701.16,700.18,0.28564083]
[1735166154169,0.91324984,701.15,700.18,0.28564083]
[1735166154676,0.28516432,701.35,700.18,0.28564083]
[1735166154677,0.91324984,701.14,700.18,0.28564083]
[1735166154975,0.91324984,701.13,700.18,0.28564083]
[1735166155375,0.91324984,701.12,700.18,0.28564083]
[1735166155776,0.91324984,701.11,700.18,0.28564083]
[1735166156174,0.91324984,701.1,700.18,0.28564083]
[1735166156476,0.91324984,701.09,700.18,0.28564083]
[1735166156676,0.91324984,701.08,700.18,0.28564083]
[1735166156879,0.91324984,701.07,700.18,0.28564083]
[1735166157278,0.91324984,701.06,700.18,0.28564083]
[1735166157678,0.91324984,701.05,700.18,0.28564083]
[1735166157978,0.91324984,701.04,700.18,0.28564083]
[1735166158477,0.91324984,701.03,700.18,0.28564083]
[1735166158676,0.91324984,701.02,700.18,0.28564083]
[1735166159078,0.91324984,701.01,700.18,0.28564083]
[1735166159273,0.28516432,701.35,700.18,0.28564083]
[1735166159274,0.91324984,701.0,700.18,0.28564083]
[1735166159675,0.91324984,700.99,700.18,0.28564083]
[1735166159879,0.91324984,700.98,700.18,0.28564083]
[1735166160276,0.91324984,700.97,700.18,0.28564083]
[1735166160582,0.91324984,700.96,700.18,0.28564083]
[1735166161079,0.91324984,700.95,700.18,0.28564083]
[1735166161280,0.28516432,701.35,700.18,0.28564083]
[1735166161482,0.91533633,701.34,700.18,0.28564083]
[1735166161982,0.91533633,701.33,700.18,0.28564083]
[1735166162381,0.91533633,701.32,700.18,0.28564083]
[1735166162881,0.28516432,701.35,700.18,0.28564083]
[1735166162882,0.91533633,701.31,700.18,0.28564083]
[1735166163078,0.91533633,701.3,700.18,0.28564083]
[1735166163484,0.91533633,701.29,700.18,0.28564083]
[1735166163775,0.91533633,701.28,700.18,0.28564083]
[1735166164183,0.91533633,701.27,700.18,0.28564083]
[1735166164482,0.91533633,701.26,700.18,0.28564083]
[1735166164680,0.91533633,701.25,700.18,0.28564083]
[1735166165278,0.91533633,701.24,700.18,0.28564083]
[1735166165686,0.91533633,701.23,700.18,0.28564083]
[1735166166083,0.91533633,701.22,700.18,0.28564083]
[1735166166382,0.91533633,701.21,700.18,0.28564083]
[1735166166777,0.91533633,701.2,700.18,0.28564083]
[1735166167183,0.91533633,701.19,700.18,0.28564083]
[1735166167590,0.91533633,701.18,700.18,0.28564083]
[1735166167984,0.91533633,701.17,700.18,0.28564083]
[1735166168182,0.91533633,701.16,700.18,0.28564083]
[1735166168383,0.91533633,701.15,700.18,0.28564083]
[1735166168585,0.91533633,701.14,700.18,0.28564083]
[1735166168989,0.91533633,701.13,700.18,0.28564083]
[1735166169182,0.91533633,701.12,700.18,0.28564083]
[1735166169586,0.91533633,701.11,700.18,0.28564083]
[1735166169988,0.91533633,701.1,700.18,0.28564083]
[1735166170188,0.91533633,701.09,700.18,0.28564083]
[1735166170586,0.91533633,701.08,700.18,0.28564083]
[1735166171081,0.91533633,701.07,700.18,0.28564083]
[1735166171285,0.91533633,701.06,700.18,0.28564083]
[1735166171882,0.28516432,701.35,700.18,0.28564083]
[1735166172083,0.9149465,701.05,700.18,0.28564083]
[1735166172483,0.9149465,701.04,700.18,0.28564083]
[1735166172785,0.28516432,701.35,700.18,0.28564083]
[1735166172990,0.91488641,701.03,700.18,0.28564083]
[1735166173291,0.91488641,701.02,700.18,0.28564083]
[1735166173789,0.91488641,701.01,700.18,0.28564083]
[1735166173992,0.28516432,701.35,700.18,0.28564083]
[1735166174593,0.91486176,701.34,700.18,0.28564083]
[1735166175091,0.91486176,701.33,700.18,0.28564083]
[1735166175289,0.91486176,701.32,700.18,0.28564083]
[1735166175485,0.91486176,701.31,700.18,0.28564083]
[1735166176193,0.91486176,701.3,700.18,0.28564083]
[1735166176589,0.91486176,701.29,700.18,0.28564083]
[1735166177091,0.28516432,701.35,700.18,0.28564083]
[1735166177092,0.91486176,701.28,700.18,0.28564083]
[1735166177691,0.91486176,701.27,700.18,0.28564083]
[1735166177892,0.91486176,701.26,700.18,0.28564083]
[1735166178193,0.91486176,701.25,700.18,0.28564083]
[1735166178590,0.91486176,701.24,700.18,0.28564083]
[1735166178791,0.91486176,701.23,700.18,0.28564083]
[1735166179188,0.91486176,701.22,700.18,0.28564083]
[1735166179387,0.91486176,701.21,700.18,0.28564083]
[1735166179795,0.28516432,701.35,700.18,0.28564083]
[1735166179796,0.91486176,701.2,700.18,0.28564083]
[1735166179994,0.91486176,701.19,700.18,0.28564083]
[1735166180193,0.91486176,701.18,700.18,0.28564083]
[1735166180591,0.91486176,701.17,700.18,0.28564083]
[1735166180794,0.91486176,701.16,700.18,0.28564083]
[1735166181194,0.91486176,701.15,700.18,0.28564083]
[1735166181496,0.91486176,701.14,700.18,0.28564083]
[1735166181696,0.91486176,701.13,700.18,0.28564083]
[1735166182195,0.28516432,701.35,700.18,0.28564083]
[1735166182196,0.91486176,701.12,700.18,0.28564083]
[1735166182491,0.91486176,701.11,700.18,0.28564083]
[1735166182895,0.91486176,701.1,700.18,0.28564083]
[1735166183090,0.91486176,701.09,700.18,0.28564083]
[1735166183488,0.28516432,701.35,700.18,0.28564083]
[1735166183489,0.91486176,701.08,700.18,0.28564083]
[1735166183889,0.91486176,701.07,700.18,0.28564083]
[1735166184293,0.91486176,701.06,700.18,0.28564083]
[1735166184595,0.28516432,701.35,700.18,0.28564083]
[1735166184797,0.91511135,701.34,700.18,0.28564083]
[1735166185296,0.91511135,701.33,700.18,0.28564083]
[1735166185497,0.91511135,701.32,700.18,0.28564083]
[1735166185795,0.28516432,701.35,700.18,0.28564083]
[1735166185796,0.91511135,701.31,700.18,0.28564083]
[1735166186195,0.91511135,701.3,700.18,0.28564083]
[1735166186389,0.91511135,701.29,700.18,0.28564083]
[1735166186594,0.91511135,701.28,700.18,0.28564083]
[1735166186794,0.91511135,701.27,700.18,0.28564083]
[1735166186991,0.91511135,701.26,700.18,0.28564083]
[1735166187394,0.28516432,701.35,700.18,0.28564083]
[1735166187395,0.91511135,701.25,700.18,0.28564083]
[1735166187588,0.91511135,701.24,700.18,0.28564083]
[1735166187995,0.91511135,701.23,700.18,0.28564083]
[1735166188497,0.91511135,701.22,700.18,0.28564083]
[1735166188999,0.91511135,701.21,700.18,0.28564083]
[1735166189198,0.91511135,701.2,700.18,0.28564083]
[1735166189593,0.91511135,701.19,700.18,0.28564083]
[1735166189795,0.91511135,701.18,700.18,0.28564083]
[1735166190499,0.91511135,701.17,700.18,0.28564083]
[1735166190695,0.91511135,701.16,700.18,0.28564083]
[1735166190894,0.91511135,701.15,700.18,0.28564083]
[1735166191299,0.28516432,701.35,700.18,0.28564083]
[1735166191498,0.91522579,701.14,700.18,0.28564083]
[1735166191901,0.91522579,701.13,700.18,0.28564083]
[1735166192304,0.91522579,701.12,700.18,0.28564083]
[1735166192601,0.28516432,701.35,700.18,0.28564083]
[1735166192602,0.91522579,701.11,700.18,0.28564083]
[1735166192805,0.91522579,701.1,700.18,0.28564083]
[1735166193104,0.28516432,701.35,700.18,0.28564083]
[1735166193305,0.91525127,701.09,700.18,0.28564083]
[1735166193601,0.91525127,701.08,700.18,0.28564083]
[1735166193799,0.28516432,701.35,700.18,0.28564083]
[1735166194199,0.91527974,701.34,700.18,0.28564083]
[1735166194797,0.91527974,701.33,700.18,0.28564083]
[1735166195004,0.28516432,701.35,700.18,0.28564083]
[1735166195005,0.91527974,701.32,700.18,0.28564083]
[1735166195204,0.91527974,701.31,700.18,0.28564083]
[1735166195404,0.91527974,701.3,700.18,0.28564083]
[1735166195805,0.91527974,701.29,700.18,0.28564083]
[1735166196106,0.91527974,701.28,700.18,0.28564083]
[1735166196503,0.91527974,701.27,700.18,0.28564083]
[1735166196703,0.91527974,701.26,700.18,0.28564083]
[1735166197108,0.91527974,701.25,700.18,0.28564083]
[1735166197502,0.91527974,701.24,700.18,0.28564083]
[1735166197909,0.91527974,701.23,700.18,0.28564083]
[1735166198109,0.91527974,701.22,700.18,0.28564083]
[1735166198506,0.91527974,701.21,700.18,0.28564083]
[1735166198708,0.28516432,701.35,700.18,0.28564083]
[1735166198909,0.91547579,701.2,700.18,0.28564083]
[1735166199305,0.91547579,701.19,700.18,0.28564083]
[1735166199711,0.91547579,701.18,700.18,0.28564083]
[1735166200209,0.91547579,701.17,700.18,0.28564083]
[1735166200616,0.91547579,701.16,700.18,0.28564083]
[1735166200908,0.91547579,701.15,700.18,0.28564083]
[1735166201310,0.91547579,701.14,700.18,0.28564083]
[1735166201611,0.91547579,701.13,700.18,0.28564083]
[1735166202007,0.91547579,701.12,700.18,0.28564083]
[1735166202207,0.91547579,701.11,700.18,0.28564083]
[1735166202512,0.91547579,701.1,700.18,0.28564083]
[1735166202713,0.91547579,701.09,700.18,0.28564083]
[1735166203114,0.91547579,701.08,700.18,0.28564083]
[1735166203609,0.28516432,701.35,700.18,0.28564083]
[1735166204015,0.91571116,701.34,700.18,0.28564083]
[1735166204207,0.91571116,701.33,700.18,0.28564083]
[1735166204710,0.91571116,701.32,700.18,0.28564083]
[1735166204916,0.91571116,701.31,700.18,0.28564083]
[1735166205216,0.91571116,701.3,700.18,0.28564083]
[1735166205514,0.28516432,701.35,700.18,0.28564083]
[1735166205515,0.91571116,701.29,700.18,0.28564083]
[1735166205711,0.91571116,701.28,700.18,0.28564083]
[1735166206014,0.91571116,701.27,700.18,0.28564083]
[1735166206409,0.91571116,701.26,700.18,0.28564083]
[1735166206610,0.91571116,701.25,700.18,0.28564083]
[1735166207110,0.91571116,701.24,700.18,0.28564083]
[1735166207314,0.28516432,701.35,700.18,0.28564083]
[1735166207315,0.91571116,701.23,700.18,0.28564083]
[1735166207712,0.91571116,701.22,700.18,0.28564083]
[1735166208013,0.91571116,701.21,700.18,0.28564083]
[1735166208517,0.91571116,701.2,700.18,0.28564083]
[1735166208718,0.91571116,701.19,700.18,0.28564083]
[1735166209115,0.91571116,701.18,700.18,0.28564083]
[1735166209312,0.91571116,701.17,700.18,0.28564083]
[1735166209814,0.91571116,701.16,700.18,0.28564083]
[1735166210014,0.91571116,701.15,700.18,0.28564083]
[1735166210518,0.91571116,701.14,700.18,0.28564083]
[1735166210819,0.91571116,701.13,700.18,0.28564083]
[1735166211118,0.91571116,701.12,700.18,0.28564083]
[1735166211417,0.91571116,701.11,700.18,0.28564083]
[1735166211811,0.91571116,701.1,700.18,0.28564083]
[1735166212012,0.91571116,701.09,700.18,0.28564083]
[1735166212519,0.28516432,701.35,700.18,0.28564083]
[1735166212919,0.91591959,701.34,700.18,0.28564083]
[1735166213414,0.91591959,701.33,700.18,0.28564083]
[1735166213813,0.28516432,701.35,700.18,0.28564083]
[1735166213814,0.91591959,701.32,700.18,0.28564083]
[1735166214211,0.91591959,701.31,700.18,0.28564083]
[1735166214718,0.91591959,701.3,700.18,0.28564083]
[1735166215120,0.91591959,701.29,700.18,0.28564083]
[1735166215522,0.91591959,701.28,700.18,0.28564083]
[1735166215821,0.91591959,701.27,700.18,0.28564083]
[1735166216021,0.91591959,701.26,700.18,0.28564083]
[1735166216523,0.91591959,701.25,700.18,0.28564083]
[1735166216822,0.91591959,701.24,700.18,0.28564083]
[1735166217022,0.91591959,701.23,700.18,0.28564083]
[1735166217420,0.91591959,701.22,700.18,0.28564083]
[1735166217921,0.91591959,701.21,700.18,0.28564083]
[1735166218419,0.91591959,701.2,700.18,0.28564083]
[1735166218621,0.91591959,701.19,700.18,0.28564083]
[1735166219023,0.91591959,701.18,700.18,0.28564083]
[1735166219418,0.91591959,701.17,700.18,0.28564083]
[1735166219821,0.91591959,701.16,700.18,0.28564083]
[1735166220023,0.91591959,701.15,700.18,0.28564083]
[1735166220420,0.91591959,701.14,700.18,0.28564083]
[1735166220721,0.91591959,701.13,700.18,0.28564083]
[1735166221123,0.91591959,701.12,700.18,0.28564083]
[1735166221417,0.91591959,701.11,700.18,0.28564083]
[1735166221817,0.91591959,701.1,700.18,0.28564083]
[1735166222321,0.91591959,701.09,700.18,0.28564083]
[1735166222521,0.91591959,701.08,700.18,0.28564083]
[1735166222917,0.91591959,701.07,700.18,0.28564083]
[1735166223122,0.91591959,701.06,700.18,0.28564083]
[1735166223525,0.91591959,701.05,700.18,0.28564083]
[1735166223824,0.91591959,701.04,700.18,0.28564083]
[1735166224125,0.91591959,701.03,700.18,0.28564083]
[1735166224420,0.91591959,701.02,700.18,0.28564083]
[1735166225026,0.91591959,701.01,700.18,0.28564083]
[1735166225222,0.91591959,701.0,700.18,0.28564083]
[1735166225625,0.91591959,700.99,700.18,0.28564083]
[1735166226026,0.91591959,700.98,700.18,0.28564083]
[1735166226227,0.91591959,700.97,700.18,0.28564083]
[1735166226627,0.91591959,700.96,700.18,0.28564083]
[1735166227128,0.91591959,700.95,700.18,0.28564083]
[1735166227526,0.91591959,700.94,700.18,0.28564083]
[1735166227934,0.91591959,700.93,700.18,0.28564083]
[1735166228230,0.91591959,700.92,700.18,0.28564083]
[1735166228427,0.91591959,700.91,700.18,0.28564083]
[1735166228931,0.28516432,701.35,700.18,0.28564083]
[1735166229235,0.91672551,701.34,700.18,0.28564083]
[1735166229530,0.91672551,701.33,700.18,0.28564083]
[1735166229925,0.91672551,701.32,700.18,0.28564083]
[1735166230327,0.91672551,701.31,700.18,0.28564083]
[1735166230730,0.91672551,701.3,700.18,0.28564083]
[1735166231128,0.91672551,701.29,700.18,0.28564083]
[1735166231532,0.91672551,701.28,700.18,0.28564083]
[1735166231836,0.91672551,701.27,700.18,0.28564083]
[1735166232233,0.91672551,701.26,700.18,0.28564083]
[1735166232635,0.91672551,701.25,700.18,0.28564083]
[1735166232835,0.91672551,701.24,700.18,0.28564083]
[1735166233234,0.91672551,701.23,700.18,0.28564083]
[1735166233435,0.91672551,701.22,700.18,0.28564083]
[1735166233834,0.91672551,701.21,700.18,0.28564083]
[1735166234235,0.91672551,701.2,700.18,0.28564083]
[1735166234636,0.91672551,701.19,700.18,0.28564083]
[1735166234831,0.91672551,701.18,700.18,0.28564083]
[1735166235234,0.91672551,701.17,700.18,0.28564083]
[1735166235632,0.91672551,701.16,700.18,0.28564083]
[1735166236040,0.91672551,701.15,700.18,0.28564083]
[1735166236337,0.91672551,701.14,700.18,0.28564083]
[1735166236539,0.28516432,701.35,700.18,0.28564083]
[1735166236540,0.91672551,701.13,700.18,0.28564083]
[1735166236932,0.91672551,701.12,700.18,0.28564083]
[1735166237438,0.91672551,701.11,700.18,0.28564083]
[1735166237637,0.91672551,701.1,700.18,0.28564083]
[1735166238039,0.91672551,701.09,700.18,0.28564083]
[1735166238434,0.91672551,701.08,700.18,0.28564083]
[1735166238938,0.91672551,701.07,700.18,0.28564083]
[1735166239334,0.91672551,701.06,700.18,0.28564083]
[1735166239535,0.91672551,701.05,700.18,0.28564083]
[1735166240039,0.91672551,701.04,700.18,0.28564083]
[1735166240439,0.91672551,701.03,700.18,0.28564083]
[1735166240939,0.28516432,701.35,700.18,0.28564083]
[1735166240940,0.91672551,701.02,700.18,0.28564083]
[1735166241140,0.91672551,701.01,700.18,0.28564083]
[1735166241541,0.91672551,701.0,700.18,0.28564083]
[1735166242135,0.91672551,700.99,700.18,0.28564083]
[1735166242340,0.91672551,700.98,700.18,0.28564083]
[1735166242744,0.91672551,700.97,700.18,0.28564083]
[1735166242940,0.91672551,700.96,700.18,0.28564083]
[1735166243644,0.91672551,700.95,700.18,0.28564083]
[1735166243846,0.91672551,700.94,700.18,0.28564083]
[1735166244042,0.91672551,700.93,700.18,0.28564083]
[1735166244442,0.91672551,700.92,700.18,0.28564083]
[1735166244846,0.28516432,701.35,700.18,0.28564083]
[1735166245246,0.91634969,701.34,700.18,0.28564083]
[1735166245443,0.91634969,701.33,700.18,0.28564083]
[1735166245748,0.91634969,701.32,700.18,0.28564083]
[1735166246148,0.91634969,701.31,700.18,0.28564083]
[1735166246545,0.28516432,701.35,700.18,0.28564083]
[1735166246844,0.9163245,701.3,700.18,0.28564083]
[1735166247042,0.9163245,701.29,700.18,0.28564083]
[1735166247242,0.9163245,701.28,700.18,0.28564083]
[1735166247550,0.9163245,701.27,700.18,0.28564083]
[1735166247943,0.9163245,701.26,700.18,0.28564083]
[1735166248349,0.9163245,701.25,700.18,0.28564083]
[1735166248647,0.28516432,701.35,700.18,0.28564083]
[1735166248648,0.9163245,701.24,700.18,0.28564083]
[1735166249054,0.9163245,701.23,700.18,0.28564083]
[1735166249354,0.28516432,701.35,700.18,0.28564083]
[1735166249355,0.9163245,701.22,700.18,0.28564083]
[1735166249950,0.9163245,701.21,700.18,0.28564083]
[1735166250354,0.9163245,701.2,700.18,0.28564083]
[1735166250649,0.9163245,701.19,700.18,0.28564083]
[1735166250854,0.9163245,701.18,700.18,0.28564083]
[1735166251049,0.9163245,701.17,700.18,0.28564083]
[1735166251354,0.9163245,701.16,700.18,0.28564083]
[1735166251856,0.9163245,701.15,700.18,0.28564083]
[1735166252050,0.9163245,701.14,700.18,0.28564083]
[1735166252456,0.9163245,701.13,700.18,0.28564083]
[1735166252961,0.9163245,701.12,700.18,0.28564083]
[1735166253258,0.28516432,701.35,700.18,0.28564083]
[1735166253259,0.9163245,701.11,700.18,0.28564083]
[1735166253659,0.9163245,701.1,700.18,0.28564083]
[1735166253853,0.9163245,701.09,700.18,0.28564083]
[1735166254257,0.9163245,701.08,700.18,0.28564083]